bitfinex/quotes_ETHUSD_20240817
["timestamp","ask_amount","ask_price","bid_price","bid_amount"]
[1723854422162,0.55,2597.4,2597.1,3.0]
[1723854424896,0.55,2597.4,2596.8,7.32]
[1723854424897,0.55,2597.4,2597.3,3.85015]
[1723854425067,0.55,2597.4,2597.3,6.85015]
[1723854425250,0.55,2597.4,2597.3,11.770333]
[1723854425606,0.7,2597.8,2597.6,3.84961]
[1723854425744,9.7154,2598.2,2597.5,0.07698615]
[1723854425745,2.2554,2598.2,2597.5,0.07698615]
[1723854425951,0.7,2598.4,2598.0,3.84898]
[1723854426594,2.2554,2598.5,2597.8,6.84932]
[1723854426595,0.7,2598.1,2597.8,6.84931]
[1723854426894,0.7,2598.1,2597.8,7.534241]
[1723854427473,0.55,2598.0,2597.8,7.534241]
[1723854428602,0.7,2598.4,2598.0,3.84904]
[1723854428907,0.7,2598.4,2597.9,3.84917]
[1723854429105,0.7,2598.4,2598.0,6.84903]
[1723854429484,0.7,2598.4,2598.0,3.0]
[1723854429994,0.55,2598.3,2597.8,3.8493]
[1723854430198,0.55,2598.3,2597.9,3.68493]
[1723854430400,0.55,2598.3,2597.9,3.0]
[1723854430706,0.55,2598.3,2598.0,3.84901]
[1723854430920,0.7,2598.3,2598.0,3.84901]
[1723854431066,0.55,2598.2,2598.0,3.84901]
[1723854431267,0.7,2598.6,2598.3,3.84857]
[1723854431612,0.7,2598.6,2598.1,3.84887]
[1723854431777,0.7,2598.6,2598.2,6.84881]
[1723854432212,0.7,2598.6,2598.3,3.84866]
[1723854432415,0.7,2598.6,2598.2,3.0]
[1723854432711,0.55,2598.5,2598.2,3.0]
[1723854434383,0.55,2598.5,2598.2,6.84881]
[1723854436501,0.55,2598.5,2598.2,3.0]
[1723854438418,0.55,2598.5,2598.3,3.84867]
[1723854438419,0.12725745,2598.4,2598.3,3.84867]
[1723854438596,0.67725745,2598.4,2598.3,6.84867]
[1723854439206,0.55,2598.4,2598.3,6.84867]
[1723854439390,0.55,2598.5,2598.3,6.84867]
[1723854439607,0.55,2598.5,2598.3,3.0]
[1723854439980,0.12725701,2598.4,2598.2,3.0]
[1723854440179,0.55,2598.5,2598.2,3.0]
[1723854441808,0.12725758,2598.4,2598.2,3.0]
[1723854442012,0.55,2598.5,2598.2,3.0]
[1723854442181,0.12725933,2598.4,2598.1,3.0]
[1723854442382,0.55,2598.3,2598.1,3.0]
[1723854442825,0.55,2598.5,2598.1,3.0]
[1723854443125,0.12725995,2598.4,2598.1,3.0]
[1723854443286,0.55,2598.3,2598.1,3.0]
[1723854443487,0.55,2598.3,2598.1,6.84895]
[1723854443732,0.55,2598.5,2598.1,3.84895]
[1723854444025,0.55,2598.5,2598.2,3.0]
[1723854445700,0.12726055,2598.4,2598.2,3.0]
[1723854445901,0.55,2598.3,2598.0,3.0]
[1723854446316,0.55,2598.5,2598.0,3.0]
[1723854446529,0.7,2598.3,2598.0,3.0]
[1723854446740,0.12727085,2598.2,2597.9,3.0]
[1723854447040,0.55,2598.1,2597.9,3.0]
[1723854447416,0.55,2598.2,2597.9,3.0]
[1723854448908,2.3484,2598.1,2597.9,3.0]
[1723854449142,0.55,2598.0,2597.8,3.8494]
[1723854449338,0.55,2598.0,2597.9,3.0]
[1723854449711,0.55,2598.2,2597.9,3.0]
[1723854450347,0.12727059,2598.1,2597.9,3.0]
[1723854450553,0.55,2598.0,2597.9,3.0]
[1723854450724,0.55,2598.2,2597.9,3.0]
[1723854451044,0.12727135,2598.1,2597.9,3.0]
[1723854451230,0.55,2598.0,2597.9,3.0]
[1723854451467,0.55,2598.2,2597.9,3.0]
[1723854451669,0.12727079,2598.1,2597.9,3.0]
[1723854451839,0.55,2598.0,2597.9,3.0]
[1723854452238,0.55,2598.2,2597.9,3.0]
[1723854453480,0.12726622,2598.1,2597.9,3.0]
[1723854453651,0.55,2598.0,2597.9,3.0]
[1723854453837,0.55,2598.2,2597.9,3.0]
[1723854454051,0.1272657,2598.1,2597.9,3.0]
[1723854454249,0.67726578,2598.0,2597.9,3.0]
[1723854457681,0.67726737,2598.0,2597.9,3.0]
[1723854457869,0.67726737,2598.0,2597.9,6.84926]
[1723854461046,0.67726737,2598.0,2597.9,11.57294055]
[1723854461259,0.12726737,2598.0,2597.9,11.57294055]
[1723854461905,1.668,2598.4,2598.2,3.8488]
[1723854462242,1.668,2598.4,2598.3,3.0]
[1723854462449,1.79525804,2598.4,2598.3,3.0]
[1723854462744,2.34525804,2598.4,2598.3,3.0]
[1723854464108,0.67725804,2598.4,2598.3,3.0]
[1723854464312,2.34525804,2598.4,2598.3,3.0]
[1723854465909,2.34525804,2598.4,2598.2,3.0]
[1723854466145,2.34525804,2598.4,2597.8,3.84931]
[1723854466146,0.7,2598.2,2598.1,3.0]
[1723854466321,1.668,2598.1,2597.9,3.0]
[1723854466524,0.12725804,2598.0,2597.9,3.0]
[1723854466865,0.67725804,2598.0,2597.9,3.0]
[1723854467018,0.67725804,2598.0,2597.9,6.84918]
[1723854467656,0.67725804,2598.0,2597.9,3.0]
[1723854467814,0.7,2597.8,2597.4,11.1699]
[1723854468026,2.2707,2597.6,2597.4,7.32]
[1723854468242,1.79525804,2597.5,2597.3,3.85013]
[1723854468573,1.79525804,2597.5,2597.2,3.85022]
[1723854468574,0.67729545,2597.4,2597.2,3.85022]
[1723854468732,0.12729545,2597.3,2597.2,3.85022]
[1723854468916,0.55,2597.3,2597.2,4.620286]
[1723854469429,0.55,2597.4,2597.3,3.85013]
[1723854469627,0.67729366,2597.4,2597.3,6.85013]
[1723854470232,0.67729602,2597.4,2597.3,6.85013]
[1723854470633,0.55,2597.4,2597.3,6.85013]
[1723854470821,0.55,2597.5,2597.3,6.85013]
[1723854471021,0.55,2597.5,2597.4,3.0]
[1723854471233,0.67729463,2597.5,2597.4,3.0]
[1723854471624,0.67729463,2597.5,2597.4,6.85]
[1723854472339,0.67729098,2597.5,2597.4,6.85]
[1723854472546,0.55,2597.5,2597.4,6.85]
[1723854472751,0.67729145,2597.5,2597.4,6.85]
[1723854473056,0.6772936,2597.5,2597.4,6.85]
[1723854473266,0.67729341,2597.5,2597.4,6.85]
[1723854473578,2.94799341,2597.5,2597.4,3.0]
[1723854473732,3.94279275,2597.5,2597.3,3.0]
[1723854474066,0.12729341,2597.4,2597.2,3.0]
[1723854474265,3.5207,2597.5,2597.2,3.0]
[1723854474266,0.55,2597.3,2597.2,3.0]
[1723854474422,1.25,2597.5,2597.2,3.0]
[1723854474423,1.25,2597.5,2597.2,6.85021]
[1723854474916,1.25,2597.5,2597.3,3.85012]
[1723854475334,1.25,2597.5,2597.4,3.0]
[1723854475537,1.37729363,2597.5,2597.4,3.0]
[1723854476235,1.25,2597.5,2597.4,3.0]
[1723854478088,1.3772962,2597.5,2597.4,3.0]
[1723854478607,1.25,2597.5,2597.4,3.0]
[1723854479079,1.37729395,2597.5,2597.4,3.0]
[1723854479298,0.55,2597.5,2597.4,6.85]
[1723854479455,0.55,2597.7,2597.4,11.61593]
[1723854479651,0.55,2597.7,2597.5,3.84982]
[1723854480195,0.55,2597.7,2597.4,6.84991]
[1723854480493,0.55,2597.7,2597.6,3.8497]
[1723854480696,0.55,2597.7,2597.6,6.8497]
[1723854480993,2.9707,2598.1,2597.8,3.84939]
[1723854481194,0.12728243,2598.0,2597.6,6.84957]
[1723854481518,0.12727927,2597.9,2597.7,6.84947]
[1723854481712,2.9707,2598.1,2597.8,3.84938]
[1723854481849,0.12727729,2598.0,2597.8,7.69871]
[1723854482050,0.12727729,2597.9,2597.8,3.84933]
[1723854482861,0.67727729,2597.9,2597.8,3.84933]
[1723854484791,0.67727729,2597.9,2597.7,3.0]
[1723854484969,0.67727729,2597.8,2597.7,3.0]
[1723854485508,0.55,2597.8,2597.7,6.84955]
[1723854485667,0.55,2598.0,2597.8,3.8494]
[1723854485859,0.12727755,2597.9,2597.7,3.0]
[1723854486102,0.67727755,2597.8,2597.7,6.84955]
[1723854486280,0.12727959,2597.8,2597.7,6.84955]
[1723854486481,0.67727959,2597.8,2597.7,3.0]
[1723854487013,0.67727959,2597.8,2597.7,6.84955]
[1723854487218,0.67727798,2597.8,2597.7,3.0]
[1723854488182,1.37727798,2597.8,2597.7,3.0]
[1723854488363,1.37727798,2597.8,2597.5,3.84983]
[1723854488364,1.37727798,2597.8,2597.6,3.0]
[1723854488566,0.67727798,2597.7,2597.6,3.0]
[1723854490001,2.34527798,2597.7,2597.6,3.0]
[1723854490605,2.34527798,2597.7,2597.4,3.0]
[1723854490801,2.218,2597.7,2597.4,3.0]
[1723854491478,0.12728507,2597.6,2597.4,6.85]
[1723854491809,0.55,2597.5,2597.4,6.85]
[1723854492114,0.55,2597.6,2597.4,6.85]
[1723854493474,1.668,2597.5,2597.4,3.0]
[1723854493671,3.04529233,2597.5,2597.4,3.0]
[1723854493871,5.54399233,2597.5,2597.4,3.0]
[1723854494412,5.54400289,2597.5,2597.4,3.0]
[1723854496726,5.54400289,2597.5,2597.3,3.0]
[1723854496901,0.67730289,2597.4,2597.3,3.0]
[1723854497774,0.67730289,2597.4,2597.3,3.0]
[1723854498385,0.55,2597.4,2597.3,3.0]
[1723854498720,0.67729744,2597.4,2597.3,3.0]
[1723854499011,0.55,2597.4,2597.3,3.0]
[1723854499321,0.67729825,2597.4,2597.3,3.0]
[1723854501332,0.67729825,2597.4,2597.3,7.920213]
[1723854501641,0.7,2597.8,2597.3,10.207413]
[1723854501836,0.67728554,2597.7,2597.3,10.207413]
[1723854502020,0.12728554,2597.6,2597.4,0.94070431]
[1723854502338,0.67728554,2597.5,2597.4,4.79070431]
[1723854502645,0.67728695,2597.5,2597.4,7.79070431]
[1723854503901,4.90225625,2598.1,2598.0,3.84911]
[1723854504217,1.668,2598.6,2598.5,3.84837]
[1723854504411,1.7952442,2598.6,2598.5,6.84837]
[1723854504745,1.668,2598.8,2598.6,3.84813]
[1723854504946,0.12723175,2598.7,2598.6,6.84813]
[1723854505113,0.12723175,2598.7,2598.6,7.48088219]
[1723854505307,0.7,2599.1,2598.9,3.84773]
[1723854505641,0.7,2599.1,2599.0,3.0]
[1723854505802,0.82721815,2599.1,2599.0,3.0]
[1723854506395,2.368,2599.1,2599.0,3.0]
[1723854506601,2.368,2599.1,2598.8,3.0]
[1723854506801,0.7,2599.1,2598.8,3.0]
[1723854507248,0.7,2599.1,2598.8,6.84792]
[1723854507534,1.668,2599.0,2598.8,3.0]
[1723854507911,0.55,2598.9,2598.8,3.0]
[1723854508117,0.55,2599.0,2598.8,3.0]
[1723854508305,0.55,2599.0,2598.8,6.84791]
[1723854508500,0.55,2599.0,2598.9,3.84778]
[1723854508748,0.55,2599.0,2598.9,6.84778]
[1723854510976,0.55,2599.0,2598.9,3.0]
[1723854511255,0.55,2599.0,2598.8,6.84792]
[1723854512102,0.55,2599.0,2598.8,3.0]
[1723854512405,0.55,2599.0,2598.9,3.84778]
[1723854512702,0.55,2599.0,2598.9,6.84778]
[1723854514450,0.7,2599.1,2599.0,3.84763]
[1723854514751,0.7,2599.1,2599.0,6.84763]
[1723854515980,1.25,2599.1,2599.0,10.69526]
[1723854516277,1.25,2599.1,2599.0,11.39584831]
[1723854516786,1.25,2599.1,2599.0,6.84763]
[1723854517588,1.25,2599.1,2598.8,6.25274]
[1723854517589,1.25,2599.1,2598.8,3.84784]
[1723854517890,2.2574,2599.2,2598.5,3.84832]
[1723854517891,0.7,2598.8,2598.5,3.84832]
[1723854518285,0.55,2598.7,2598.5,3.84832]
[1723854518505,0.55,2598.7,2598.4,11.16843]
[1723854518643,2.8074,2598.7,2598.4,7.32]
[1723854518847,0.7,2598.5,2598.4,7.32]
[1723854519094,1.25,2598.5,2598.4,7.32]
[1723854520281,0.55,2598.5,2598.4,6.84852]
[1723854520685,0.55,2598.7,2598.4,6.84852]
[1723854520839,0.55,2598.7,2598.5,6.84837]
[1723854521595,0.55,2598.7,2598.5,3.0]
[1723854521879,0.55,2598.7,2598.4,3.0]
[1723854522286,0.55,2598.7,2598.4,6.84839]
[1723854527396,2.9574,2598.5,2598.4,3.0]
[1723854527600,2.9574,2598.5,2598.2,3.0]
[1723854527601,3.5074,2598.5,2598.2,3.0]
[1723854527916,0.55,2598.4,2598.2,3.0]
[1723854528504,0.55,2598.4,2598.2,6.84878]
[1723854528816,0.55,2598.4,2598.2,3.0]
[1723854529181,0.55,2598.4,2598.3,3.84867]
[1723854529384,0.55,2598.4,2598.3,3.0]
[1723854529773,0.55,2598.4,2598.3,6.84867]
[1723854529972,0.55,2598.4,2598.3,7.918421]
[1723854530172,0.55,2598.6,2598.4,3.84838]
[1723854532878,0.55,2598.7,2598.3,3.0]
[1723854533078,0.12724963,2598.6,2598.4,3.0]
[1723854533278,0.67724528,2598.5,2598.4,3.0]
[1723854534442,0.55,2598.5,2598.4,3.0]
[1723854534639,0.55,2598.7,2598.4,3.0]
[1723854534841,0.12724427,2598.6,2598.4,3.0]
[1723854535037,0.55,2598.5,2598.4,6.84852]
[1723854535241,0.55,2598.7,2598.5,3.84835]
[1723854535423,0.12724038,2598.6,2598.5,3.84835]
[1723854535626,0.67723899,2598.6,2598.5,3.84835]
[1723854535827,0.55,2598.6,2598.5,3.84835]
[1723854536138,2.217,2598.7,2598.5,3.84835]
[1723854537219,0.12723877,2598.6,2598.5,3.84835]
[1723854537417,0.67723814,2598.6,2598.5,3.84835]
[1723854538141,3.1698,2599.1,2598.7,3.84793]
[1723854538346,1.667,2598.9,2598.7,3.84793]
[1723854538559,0.12722764,2598.8,2598.7,3.84793]
[1723854539457,0.67722764,2598.8,2598.7,3.84793]
[1723854540332,1.667,2599.3,2599.0,3.84763]
[1723854540566,0.7,2599.4,2599.2,3.84733]
[1723854540773,0.12720428,2599.3,2599.2,3.84733]
[1723854541133,0.12720428,2599.3,2599.2,6.84733]
[1723854541371,1.79420428,2599.3,2599.2,6.84733]
[1723854541574,1.79420428,2599.3,2599.2,3.0]
[1723854541775,4.81400428,2599.3,2599.1,3.0]
[1723854541977,0.67720428,2599.2,2599.0,3.0]
[1723854542152,0.82720428,2599.1,2598.9,3.0]
[1723854542492,0.82720428,2599.1,2598.6,11.16813]
[1723854542493,0.67722309,2599.0,2598.7,3.0]
[1723854542782,0.55,2599.0,2598.7,6.84806]
[1723854544478,0.55,2599.0,2598.8,3.84792]
[1723854544773,0.55,2599.0,2598.9,3.0]
[1723854545507,0.67722281,2599.0,2598.9,3.0]
[1723854546937,0.55,2599.0,2598.9,3.0]
[1723854547139,0.67722179,2599.0,2598.9,3.0]
[1723854549136,0.67722179,2599.0,2598.9,7.53256]
[1723854549375,0.7,2599.4,2598.9,3.68478]
[1723854549577,0.12720681,2599.3,2598.9,3.76172501]
[1723854549775,0.7,2599.4,2598.9,3.76172501]
[1723854549776,0.7,2599.4,2599.1,3.84748]
[1723854550076,0.7,2599.4,2599.2,3.0]
[1723854550077,0.1272063,2599.3,2599.2,3.0]
[1723854550580,0.67720488,2599.3,2599.2,3.0]
[1723854551278,0.67720488,2599.3,2599.0,6.84748]
[1723854551575,0.55,2599.2,2599.1,3.84747]
[1723854551883,0.55,2599.2,2599.1,6.84747]
[1723854552077,0.55,2599.3,2599.2,3.84733]
[1723854552264,0.55,2599.3,2599.2,6.84733]
[1723854552580,0.55,2599.3,2599.2,10.69466]
[1723854553080,0.55,2599.4,2599.3,3.84714]
[1723854553281,0.67719869,2599.4,2599.3,6.84714]
[1723854553442,0.55,2599.4,2599.3,6.84714]
[1723854553843,0.55,2599.4,2599.3,3.0]
[1723854554654,0.55,2599.4,2599.1,3.84746]
[1723854554655,0.67720722,2599.4,2599.2,3.0]
[1723854554987,0.12721194,2599.3,2599.2,3.0]
[1723854555283,0.12721194,2599.3,2599.1,3.0]
[1723854555284,0.7,2599.2,2599.1,3.0]
[1723854555490,0.55,2599.3,2599.1,6.84748]
[1723854555663,0.55,2599.4,2599.1,6.84748]
[1723854556051,0.7,2599.2,2599.1,3.0]
[1723854556389,1.25,2599.2,2599.1,3.0]
[1723854556541,0.55,2599.2,2599.1,7.91699]
[1723854556741,0.55,2599.4,2599.1,7.91699]
[1723854557061,0.55,2599.4,2599.1,6.84748]
[1723854557395,0.55,2599.4,2599.1,3.0]
[1723854557886,0.55,2599.4,2599.1,6.84739]
[1723854558099,0.55,2599.4,2599.2,3.8473]
[1723854558260,0.55,2599.4,2599.3,3.0]
[1723854558682,0.67720371,2599.4,2599.3,3.0]
[1723854558988,0.55,2599.4,2599.3,3.0]
[1723854559389,0.55,2599.4,2599.3,6.84718]
[1723854559594,0.55,2599.4,2599.3,7.53191]
[1723854560056,0.55,2599.4,2599.3,3.0]
[1723854560246,0.67720571,2599.4,2599.3,3.0]
[1723854560648,0.55,2599.4,2599.3,6.84718]
[1723854561861,2.96120094,2599.4,2599.3,3.0]
[1723854562069,0.55,2599.4,2599.3,3.0]
[1723854562360,0.55,2599.4,2599.3,11.379085]
[1723854562564,0.55,2599.4,2599.3,13.15076]
[1723854562756,0.7,2599.6,2599.4,3.84701]
[1723854562948,0.55,2599.5,2599.3,10.69428]
[1723854563164,0.55,2599.5,2599.3,10.69419]
[1723854563588,0.55,2599.5,2599.3,6.84709]
[1723854563793,0.55,2599.5,2599.3,3.0]
[1723854563994,2.41120445,2599.4,2599.3,3.0]
[1723854564198,0.55,2599.4,2599.3,6.84718]
[1723854564361,0.67720152,2599.4,2599.3,6.84718]
[1723854565303,0.55,2599.4,2599.3,14.220219]
[1723854565590,0.7,2599.9,2599.3,14.220219]
[1723854565591,0.7,2599.9,2599.4,3.84701]
[1723854565779,7.46,2600.0,2599.7,3.84653]
[1723854565780,0.1271847,2599.8,2599.7,3.84653]
[1723854565984,0.1271847,2599.8,2599.7,6.30293]
[1723854566288,1.60636716,2600.5,2600.1,3.846]
[1723854566289,4.39643497,2600.5,2600.1,3.846]
[1723854566490,4.39643497,2600.5,2600.0,3.84615]
[1723854566491,0.12716861,2600.4,2600.0,3.84615]
[1723854566695,0.12716861,2600.3,2600.0,7.69212]
[1723854566879,0.7,2600.5,2600.0,7.69212]
[1723854566880,0.7,2600.5,2600.0,3.84606]
[1723854567050,0.12717111,2600.4,2600.0,3.84606]
[1723854567253,0.12717111,2600.3,2600.0,3.84606]
[1723854567483,0.12717111,2600.2,2599.8,6.84634]
[1723854567692,7.19041918,2600.6,2599.8,6.84634]
[1723854567693,3.29607111,2600.1,2599.8,6.84634]
[1723854567991,0.12717111,2600.0,2599.8,6.84634]
[1723854568350,0.55,2599.9,2599.8,3.0]
[1723854568552,0.55,2599.9,2599.7,3.0]
[1723854568759,3.1689,2600.1,2599.7,3.0]
[1723854568760,0.55,2600.0,2599.7,3.0]
[1723854568995,0.55,2600.0,2599.8,3.84633]
[1723854569178,0.55,2600.0,2599.9,3.0]
[1723854576961,3.14608046,2600.0,2599.9,3.0]
[1723854577295,3.14608046,2600.0,2598.9,1.38459858]
[1723854577296,0.7,2599.5,2598.9,2.2653]
[1723854577481,0.7,2599.5,2599.2,3.84725]
[1723854577684,0.55,2599.4,2599.3,3.84718]
[1723854578553,0.55,2599.4,2599.3,6.84718]
[1723854578984,0.55,2599.4,2599.3,3.0]
[1723854580670,0.55,2599.4,2599.1,3.0]
[1723854580999,0.55,2599.4,2599.1,6.84744]
[1723854581375,3.0189,2599.4,2599.1,6.84744]
[1723854582002,3.0189,2599.4,2599.2,3.84732]
[1723854582203,3.0189,2599.4,2599.3,3.0]
[1723854583172,0.55,2599.4,2599.3,3.0]
[1723854587710,0.55,2599.4,2599.3,4.069449]
[1723854587865,0.7,2599.5,2599.3,4.069449]
[1723854588070,0.7,2599.8,2599.4,6.84704]
[1723854588375,1.79218583,2599.7,2599.5,3.84685]
[1723854588572,1.665,2599.7,2599.6,3.0]
[1723854588800,1.7921857,2599.7,2599.6,6.84674]
[1723854589412,1.665,2599.7,2599.6,7.916091]
[1723854590406,1.7921809,2599.7,2599.6,7.916091]
[1723854590650,2.3421809,2599.7,2599.6,7.916091]
[1723854591369,2.3421809,2599.7,2599.6,6.84674]
[1723854591571,2.3421809,2599.7,2599.6,3.0]
[1723854592936,0.7,2599.5,2599.4,3.0]
[1723854593091,0.7,2599.5,2599.2,6.84724]
[1723854593092,1.665,2599.4,2599.2,6.84724]
[1723854593424,0.55,2599.3,2599.2,6.84724]
[1723854593715,0.55,2599.3,2599.2,7.916701]
[1723854594121,0.7,2599.5,2599.2,7.916701]
[1723854594122,0.55,2599.4,2599.2,7.916701]
[1723854594464,0.55,2599.4,2599.3,3.84718]
[1723854594614,0.55,2599.4,2599.3,6.84718]
[1723854596261,0.55,2599.4,2599.3,3.0]
[1723854596557,0.67720103,2599.4,2599.3,3.0]
[1723854596762,0.55,2599.4,2599.3,3.0]
[1723854597051,0.67720151,2599.4,2599.3,3.0]
[1723854597359,3.09460151,2599.4,2599.3,3.0]
[1723854597560,2.9674,2599.4,2599.3,3.0]
[1723854597718,3.0946032,2599.4,2599.3,3.0]
[1723854599461,0.6772032,2599.4,2599.3,3.0]
[1723854599632,0.6772032,2599.4,2599.3,6.84718]
[1723854600421,0.6772032,2599.4,2599.3,3.0]
[1723854600949,0.55,2599.4,2599.3,3.0]
[1723854601141,0.67720391,2599.4,2599.3,3.0]
[1723854601729,0.67720391,2599.4,2599.1,3.0]
[1723854601730,0.7,2599.2,2599.1,3.0]
[1723854601953,1.37720391,2599.2,2598.9,3.84774]
[1723854602258,0.67721669,2599.1,2598.9,3.84774]
[1723854602469,0.55,2599.1,2598.9,3.84774]
[1723854602820,0.7,2598.9,2598.7,0.80560695]
[1723854603020,2.9674,2598.8,2598.7,0.80560695]
[1723854603225,3.09463546,2598.8,2598.7,0.80560695]
[1723854604136,0.7,2598.3,2598.0,0.3858]
[1723854604332,0.55,2598.2,2598.0,0.3858]
[1723854604540,0.55,2598.2,2597.8,0.3858]
[1723854605074,0.55,2598.2,2597.7,3.84947]
[1723854605275,0.12727411,2598.1,2597.7,3.84947]
[1723854605567,0.55,2598.0,2597.7,3.84947]
[1723854605869,0.55,2598.2,2597.7,3.84947]
[1723854606023,3.1174,2598.0,2597.8,3.0]
[1723854606225,0.55,2597.9,2597.6,3.0]
[1723854606450,0.55,2597.9,2597.7,3.84945]
[1723854606764,0.55,2597.9,2597.8,3.0]
[1723854608126,0.55,2597.9,2597.8,6.84941]
[1723854608361,0.7,2598.3,2598.0,3.84905]
[1723854608539,0.55,2598.2,2598.0,3.84905]
[1723854608742,0.55,2598.2,2598.0,3.84903]
[1723854609167,0.55,2598.2,2598.1,3.0]
[1723854609812,3.17,2598.6,2598.3,3.84855]
[1723854609813,0.7,2598.6,2598.3,3.84855]
[1723854610018,0.7,2598.9,2598.2,2.6298]
[1723854610308,0.7,2598.9,2598.7,3.84797]
[1723854611375,0.55,2598.8,2598.7,3.84797]
[1723854611599,0.55,2598.8,2598.7,3.0]
[1723854611914,0.55,2598.8,2598.6,6.84821]
[1723854612216,0.55,2598.8,2598.6,7.617866]
[1723854612816,0.55,2598.8,2598.6,3.769656]
[1723854613109,0.55,2598.8,2598.6,3.0]
[1723854613490,0.7,2598.4,2598.1,3.84888]
[1723854613685,0.7,2598.4,2598.2,6.84881]
[1723854613904,0.55,2598.3,2598.2,4.069769]
[1723854614822,0.55,2598.3,2597.9,3.84917]
[1723854615330,0.55,2598.3,2598.0,3.84902]
[1723854615536,1.20465691,2599.2,2598.3,3.84862]
[1723854615537,0.7,2598.6,2598.3,3.84862]
[1723854615733,0.7,2598.6,2598.5,3.84837]
[1723854615893,0.7,2598.6,2598.3,3.84862]
[1723854616098,0.7,2598.6,2598.1,6.17871]
[1723854616099,0.7,2598.6,2598.1,7.69775]
[1723854616314,0.7,2598.6,2598.2,6.84875]
[1723854616523,0.7,2598.9,2598.4,3.84851]
[1723854616693,0.7,2598.9,2598.5,6.84828]
[1723854616890,0.55,2598.8,2598.5,3.84828]
[1723854617090,0.55,2598.8,2598.6,3.0]
[1723854617632,0.55,2598.8,2598.6,6.84813]
[1723854617931,0.55,2598.8,2598.6,3.0]
[1723854618098,0.55,2598.8,2598.4,3.0]
[1723854619028,0.55,2598.8,2598.5,3.84834]
[1723854619197,0.55,2598.8,2598.6,3.0]
[1723854619910,0.922,2598.8,2598.6,3.0]
[1723854620622,0.922,2598.8,2598.4,6.84852]
[1723854621518,0.922,2598.8,2598.5,3.84836]
[1723854621724,0.55,2598.8,2598.6,3.0]
[1723854622101,0.55,2598.8,2598.5,3.0]
[1723854623735,0.55,2598.8,2598.5,6.84836]
[1723854623936,0.55,2598.8,2598.6,3.84822]
[1723854624260,3.17,2599.2,2598.8,3.8479]
[1723854624414,3.17,2599.2,2598.6,4.765932]
[1723854624415,0.12723553,2599.1,2598.6,3.84813]
[1723854624616,0.12723553,2599.0,2598.7,3.0]
[1723854624943,0.12723553,2598.9,2598.7,6.84807]
[1723854625153,4.71311046,2599.2,2598.7,6.84807]
[1723854625309,0.67723764,2599.1,2598.7,6.84807]
[1723854625659,0.12723764,2599.0,2598.7,6.84807]
[1723854625809,0.55,2598.9,2598.8,3.84792]
[1723854626008,0.55,2598.9,2598.8,6.84792]
[1723854626204,0.55,2599.1,2598.8,6.84792]
[1723854626406,0.55,2599.1,2598.9,3.0]
[1723854627847,0.55,2599.1,2598.9,6.84776]
[1723854628048,0.55,2599.1,2598.9,10.69545]
[1723854628268,0.55,2599.1,2598.9,11.40361731]
[1723854628823,0.55,2599.1,2598.9,7.55585731]
[1723854629467,0.55,2599.1,2598.9,10.69538]
[1723854629659,0.55,2599.1,2598.9,6.84769]
[1723854629877,0.7,2599.5,2599.0,2.4214]
[1723854630172,13.84620921,2600.1,2599.7,3.84651]
[1723854630173,0.7,2600.1,2599.7,3.84651]
[1723854630515,2.3627,2600.2,2599.7,3.84651]
[1723854630516,0.12717982,2600.0,2599.7,3.84651]
[1723854630719,0.12717982,2599.9,2599.7,3.84651]
[1723854630965,0.38658046,2600.1,2599.7,3.84651]
[1723854631261,0.12718099,2600.0,2599.7,3.84651]
[1723854631427,0.55,2599.9,2599.7,3.84651]
[1723854631632,0.7,2599.9,2599.7,3.84651]
[1723854631865,0.55,2599.8,2599.6,3.84672]
[1723854633244,0.55,2599.8,2599.7,3.84659]
[1723854633446,0.55,2599.8,2599.7,6.84659]
[1723854633650,3.0627,2600.5,2600.1,3.846]
[1723854633839,0.7,2600.7,2600.3,3.84566]
[1723854634036,0.12715604,2600.6,2600.4,3.0]
[1723854634236,3.0627,2600.8,2600.4,3.0]
[1723854634430,0.78638046,2600.7,2600.4,3.0]
[1723854635342,3.0627,2600.8,2600.4,6.84552]
[1723854635530,3.0627,2600.8,2600.4,3.0]
[1723854636348,0.7,2600.5,2600.4,3.0]
[1723854636543,1.25,2600.5,2600.2,3.0]
[1723854636834,1.0198,2600.4,2600.2,3.0]
[1723854637346,0.55,2600.4,2600.2,3.0]
[1723854638629,0.55,2600.4,2600.0,6.84611]
[1723854639091,0.7,2599.9,2599.3,12.17]
[1723854639382,0.55,2599.8,2599.4,3.84695]
[1723854639939,0.55,2599.8,2599.5,3.84688]
[1723854640578,0.55,2599.8,2599.6,3.0]
[1723854644970,0.7,2599.6,2599.5,3.0]
[1723854645175,0.7,2599.6,2599.2,3.0]